bitfinex-derivatives/quotes_ETHF0:USTF0_20250530
["timestamp","ask_amount","ask_price","bid_price","bid_amount"]
[1748642743597,1.44396,2570.6,2570.5,4.142]
[1748642743799,2.76326,2570.6,2570.5,4.142]
[1748642745611,0.77804,2570.0,2569.9,3.2078]
[1748642745808,1.94502,2570.2,2569.6,3.2078]
[1748642746113,0.77812,2569.8,2569.7,4.92112]
[1748642746618,1.3366,2569.9,2569.8,0.77811]
[1748642746808,1.3366,2569.9,2569.7,4.143]
[1748642746809,3.2818,2569.9,2569.5,0.00583748]
[1748642747011,0.77817,2569.6,2569.5,0.00583748]
[1748642747511,2.11477,2569.6,2569.5,0.00583748]
[1748642748016,1.94558,2569.4,2568.7,3.2078]
[1748642748223,0.77826,2569.3,2569.2,0.77827]
[1748642748418,0.77826,2569.3,2569.2,4.92129]
[1748642749219,0.77825,2569.4,2569.3,0.77825]
[1748642749513,0.00583748,2569.5,2569.0,0.00389168]
[1748642749824,0.77832,2569.1,2569.0,4.14789168]
[1748642751216,0.77832,2569.1,2569.0,4.92624168]
[1748642751423,4.509,2569.3,2569.0,4.14789168]
[1748642751717,0.77832,2569.1,2569.0,4.92622168]
[1748642751920,3.2078,2569.3,2569.2,0.77829]
[1748642752120,0.00583748,2569.5,2569.3,0.77823]
[1748642752325,0.00583748,2569.5,2569.2,4.144]
[1748642752516,0.77823,2569.4,2569.3,2.09284]
[1748642753225,0.78404748,2569.5,2569.4,0.77823]
[1748642753424,0.78403748,2569.5,2569.4,4.144]
[1748642753612,1.26093748,2569.5,2569.0,0.00389168]
[1748642753921,0.7783,2569.2,2569.1,0.77829]
[1748642754121,0.7783,2569.2,2569.1,5.07729]
[1748642754322,1.92153748,2569.5,2569.3,0.77824]
[1748642754323,0.77826,2569.4,2569.3,0.77824]
[1748642754514,1.2551,2569.4,2569.3,0.77824]
[1748642754716,2.03333,2569.4,2569.3,0.77824]
[1748642754926,2.03333,2569.4,2569.0,1.94970168]
[1748642754927,0.77832,2569.1,2569.0,0.00389168]
[1748642755223,3.98612,2569.1,2569.0,0.00389168]
[1748642755818,4.66462,2569.1,2569.0,0.00389168]
[1748642757228,1.45682,2569.1,2569.0,0.00389168]
[1748642757527,1.45682,2569.1,2569.0,0.78224168]
[1748642757726,1.45682,2569.1,2569.0,0.00389168]
[1748642759229,4.66462,2569.1,2569.0,0.00389168]
[1748642760834,4.66462,2569.1,2569.0,4.30289168]
[1748642763029,4.65716871,2569.1,2569.0,4.30289168]
[1748642763431,0.77086871,2569.1,2569.0,4.30289168]
[1748642764127,0.77086871,2569.1,2569.0,5.08124168]
[1748642765840,0.77086871,2569.1,2569.0,4.30289168]
[1748642766043,0.84080728,2569.1,2569.0,0.00389168]
[1748642766331,1.94588,2569.0,2568.3,0.389]
[1748642766530,0.77844,2568.7,2568.6,4.3]
[1748642766737,0.77858,2568.3,2568.2,0.77856]
[1748642767033,0.77858,2568.3,2568.2,4.3]
[1748642767733,0.77858,2568.3,2568.2,5.07859]
[1748642768433,2.12885,2568.4,2568.3,0.77856]
[1748642768643,2.12379,2568.9,2568.4,1.94632]
[1748642768937,0.84827857,2569.1,2569.0,0.77835]
[1748642769144,0.84827857,2569.1,2569.0,4.3]
[1748642769333,0.06993857,2569.1,2569.0,5.07835]
[1748642769841,0.84825857,2569.1,2569.0,4.3]
[1748642770038,1.94591,2569.0,2568.4,3.2078]
[1748642770249,0.77843,2568.8,2568.7,0.77841]
[1748642770540,0.7784,2568.9,2568.8,0.77838]
[1748642770727,2.12867,2569.0,2568.9,0.77838]
[1748642770933,0.77837,2569.0,2568.9,5.07838]
[1748642772842,0.84827857,2569.1,2569.0,0.77835]
[1748642773745,0.06993857,2569.1,2569.0,0.77835]
[1748642773939,0.84825857,2569.1,2569.0,2.05205]
[1748642774138,0.84825857,2569.1,2569.0,4.3]
[1748642774341,1.04265857,2569.1,2569.0,4.3]
[1748642775447,2.98295857,2569.1,2569.0,4.3]
[1748642775946,2.98295857,2569.1,2569.0,5.07835]
[1748642776239,2.98295857,2569.1,2569.0,4.3]
[1748642776748,0.26433857,2569.1,2569.0,5.07835]
[1748642777439,1.04265857,2569.1,2569.0,5.07835]
[1748642777643,0.26433857,2569.1,2569.0,5.07835]
[1748642777948,1.04265857,2569.1,2569.0,5.07835]
[1748642778443,1.04265857,2569.1,2569.0,6.40605]
[1748642779539,1.04265857,2569.1,2569.0,4.3]
[1748642780143,1.67335857,2569.1,2569.0,4.3]
[1748642781235,1.94588,2569.0,2568.8,4.3]
[1748642781447,1.41398,2568.9,2568.8,5.07841]
[1748642782245,1.41398,2568.9,2568.8,4.3]
[1748642782542,2.64808,2568.9,2568.8,4.3]
[1748642782947,0.77844,2568.7,2568.6,4.3]
[1748642784648,3.98624,2568.7,2568.6,4.3]
[1748642785048,0.77847,2568.6,2568.5,4.258]
[1748642785248,2.65637,2568.6,2568.5,4.258]
[1748642789243,2.85097,2568.6,2568.5,4.258]
[1748642789447,0.77856,2568.3,2568.2,0.77857]
[1748642789655,0.77856,2568.3,2568.2,5.03657]
[1748642791557,0.77853,2568.5,2568.4,0.77851]
[1748642792853,0.77853,2568.5,2568.2,5.03657]
[1748642792854,0.77856,2568.3,2568.2,5.03657]
[1748642795350,0.77856,2568.3,2568.2,0.77857]
[1748642795650,0.77865,2568.1,2568.0,4.258]
[1748642795861,0.77868,2567.9,2567.8,7.4658]
[1748642796159,0.77877,2567.6,2567.5,4.258]
[1748642796759,0.77877,2567.6,2567.5,5.0368]
[1748642798250,2.00913,2567.8,2567.7,0.77874]
[1748642798447,0.77869,2567.9,2567.8,0.77871]
[1748642798750,0.77874,2567.8,2567.7,0.77874]
[1748642798950,2.13444,2567.8,2567.7,0.77874]
[1748642799151,1.3557,2567.8,2567.6,1.3027]
[1748642799355,0.77874,2567.7,2567.6,0.77875]
[1748642799956,2.13443,2567.8,2567.7,0.77874]
[1748642801953,1.3557,2567.8,2567.7,0.77874]
[1748642802759,2.13441,2567.8,2567.7,0.77874]
[1748642805658,1.3557,2567.8,2567.5,5.5663]
[1748642805850,0.77877,2567.6,2567.5,4.258]
[1748642806066,3.2078,2567.6,2567.2,0.77886]
[1748642806355,3.2078,2567.6,2567.2,5.03786]
[1748642806356,0.77888,2567.3,2567.2,5.03786]
[1748642806655,3.2078,2567.6,2567.2,4.259]
[1748642806855,0.77885,2567.4,2567.3,0.77882]
[1748642807457,0.77886,2567.3,2567.2,4.259]
[1748642807657,1.43756,2567.3,2567.2,4.259]
[1748642808359,1.94735,2567.1,2566.5,0.77909]
[1748642808658,0.77904,2566.7,2566.6,4.26]
[1748642808855,0.77904,2566.7,2566.6,5.03908]
[1748642809357,0.77911,2566.5,2566.4,7.4678]
[1748642809557,3.30363,2566.6,2565.9,4.26]
[1748642809752,4.5637,2566.4,2566.0,3.2078]
[1748642810067,0.77932,2565.8,2565.7,3.2078]
[1748642810263,0.77938,2565.6,2565.5,5.42156249]
[1748642810456,0.77932,2565.8,2565.3,3.2078]
[1748642810759,0.77935,2565.7,2565.5,0.77939]
[1748642810959,0.77934,2565.8,2565.6,0.77937]
[1748642811150,2.5379,2566.1,2565.6,7.4678]
[1748642811352,5.7457,2566.1,2565.7,1.2484]
[1748642811553,0.77932,2565.8,2565.6,5.03936]
[1748642811755,5.7457,2566.1,2565.6,4.26]
[1748642811957,0.77927,2566.0,2565.8,0.77931]
[1748642812155,1.225,2566.0,2565.6,4.26]
[1748642812357,0.77935,2565.7,2565.6,4.26]
[1748642813454,0.77934,2565.8,2565.6,5.03938]
[1748642813654,2.05005,2565.7,2565.6,4.26]
[1748642814359,1.2707,2565.7,2565.2,4.261]
[1748642814660,0.77945,2565.4,2565.2,4.261]
[1748642814960,0.77945,2565.4,2565.2,5.04048]
[1748642815259,0.77953,2565.1,2565.0,3.2078]
[1748642815563,0.77953,2565.1,2564.9,0.77959]
[1748642815564,0.77955,2565.1,2564.9,0.77959]
[1748642815767,0.77955,2565.1,2565.0,4.248]
[1748642815962,1.91813748,2565.3,2564.8,0.77961]
[1748642816159,1.2818,2565.0,2564.6,3.2078]
[1748642816463,1.2818,2565.0,2564.9,0.77959]
[1748642816658,2.06136,2565.0,2564.8,0.77961]
[1748642816857,0.77965,2564.7,2564.6,3.2078]
[1748642817055,0.77974,2564.4,2564.3,4.249]
[1748642817267,0.77974,2564.4,2563.9,3.2078]
[1748642817268,0.77989,2564.0,2563.6,5.0644]
[1748642817578,1.9504,2564.3,2563.8,0.77991]
[1748642817859,1.9504,2564.3,2562.8,0.39184897]
[1748642818062,3.2078,2563.6,2562.6,7.4568]
[1748642818263,3.2078,2563.4,2563.0,0.78015]
[1748642818462,3.2078,2563.4,2562.9,3.2078]
[1748642818667,3.2078,2563.4,2563.3,0.78008]
[1748642818966,1.2818,2563.7,2563.3,4.251]
[1748642819157,3.2078,2563.5,2563.3,4.251]
[1748642819468,0.78001,2563.6,2563.4,0.78003]
[1748642819661,3.98782,2563.5,2563.4,4.251]
[1748642819860,5.29752,2563.5,2563.4,4.251]
[1748642820062,0.78023,2562.8,2562.7,0.07804268]
[1748642820364,0.78023,2562.8,2562.7,4.32904268]
[1748642820960,2.08993,2562.8,2562.7,4.32904268]
[1748642821360,2.08993,2562.8,2562.7,0.07804268]
[1748642821957,2.08993,2562.8,2562.7,4.33004268]
[1748642822263,8.26029,2562.8,2561.6,3.2078]
[1748642822466,0.78048,2562.0,2561.7,4.252]
[1748642822662,0.78046,2562.1,2561.7,5.03254]
[1748642822862,0.78049,2562.0,2561.7,5.03254]
[1748642823161,0.78046,2562.1,2561.8,0.78053]
[1748642823470,0.78046,2562.1,2561.6,4.5589]
[1748642823471,1.95134,2561.8,2560.1,4.468]
[1748642823658,3.2078,2561.0,2560.2,0.07811889]
[1748642824166,0.00584955,2561.2,2561.1,0.78075]
[1748642824368,0.00584955,2561.2,2561.1,5.24875]
[1748642824669,0.00584955,2561.2,2561.1,10.24875]
[1748642824870,0.00584955,2561.2,2561.1,10.27190501]
[1748642825368,3.8279,2562.0,2561.1,10.27190501]
[1748642825369,3.8279,2562.0,2561.1,9.56924645]
[1748642825572,1.2722,2561.9,2561.4,0.78065]
[1748642825864,1.2722,2561.9,2561.5,4.47]
[1748642826070,3.2078,2561.6,2561.5,4.47]
[1748642826269,3.9884,2561.6,2561.5,4.47]
[1748642826462,0.78066,2561.4,2561.3,1.36374955]
[1748642826662,0.78066,2561.4,2561.3,0.00584955]
[1748642826868,1.2722,2561.5,2561.3,4.47584955]
[1748642827062,0.00584955,2561.8,2561.7,0.78056]
[1748642827265,3.2078,2562.9,2561.8,1.95134]
[1748642827467,3.2078,2562.9,2561.7,3.2078]
[1748642827468,3.2078,2563.8,2562.8,3.2078]
[1748642827672,0.77997,2563.7,2563.4,0.78003]
[1748642827865,0.77999,2563.6,2563.5,4.471]
[1748642828373,2.29064378,2564.2,2564.1,0.77983]
[1748642828671,3.2078,2565.2,2564.1,9.471]
[1748642828870,1.94883,2565.1,2564.2,5.6995]
[1748642829169,3.2078,2564.7,2564.3,4.471]
[1748642829372,0.77977,2564.3,2564.2,1.2285]
[1748642829774,0.77977,2564.3,2564.2,5.6995]
[1748642830171,0.77977,2564.3,2564.2,1.2285]
[1748642830377,1.94952,2564.2,2563.4,3.2078]
[1748642830668,0.78005,2563.4,2563.3,0.00584955]
[1748642830869,3.2078,2564.1,2563.3,4.47584955]
[1748642830870,3.2078,2563.8,2563.3,4.47584955]
[1748642831070,0.78002,2563.5,2563.4,1.2285]
[1748642831773,0.85799224,2563.7,2563.4,9.68633]
[1748642831976,0.07801529,2563.6,2563.4,8.9063]
[1748642832172,0.07801529,2563.6,2563.4,14.68633]
[1748642832370,0.77981,2564.2,2563.8,0.77992]
[1748642832575,0.77981,2564.2,2563.9,8.9965]
[1748642832765,0.77981,2564.2,2564.0,4.47]
[1748642832970,4.55644955,2564.8,2564.1,1.3187]
[1748642833170,0.07798183,2564.7,2564.1,1.3187]
[1748642833374,0.77968,2564.6,2564.2,3.98759]
[1748642833676,3.4027,2564.5,2564.2,4.47]
[1748642833870,0.77977,2564.3,2564.2,4.47]
[1748642834380,0.77993,2563.8,2563.7,1.3187]
[1748642834683,0.77993,2563.8,2563.7,8.9965]
[1748642834881,0.77993,2563.8,2563.7,3.2078]
[1748642835074,0.78005,2563.4,2563.3,3.21364955]
[1748642835273,0.78005,2563.4,2563.3,7.90364955]
[1748642836584,0.78005,2563.4,2563.3,3.21364955]
[1748642836779,0.78005,2563.4,2563.3,4.69584955]
[1748642837171,0.78005,2563.4,2563.3,0.00584955]
[1748642837578,0.76645246,2563.4,2563.3,0.00584955]
[1748642837780,3.19492,2563.7,2563.3,4.69584955]
[1748642837781,3.2078,2563.6,2563.3,4.69584955]
[1748642837979,1.94984,2563.8,2563.3,6.81772955]
[1748642838180,4.431,2564.0,2563.3,9.24544955]
[1748642838479,0.77995,2563.8,2563.7,3.2078]
[1748642838685,0.77995,2563.8,2563.7,7.8978]
[1748642839485,0.77981,2564.2,2564.0,0.77985]
[1748642839678,0.77981,2564.2,2564.1,1.3418]
[1748642839873,0.00584955,2564.8,2564.1,1.3418]
[1748642840094,0.77975,2564.4,2564.3,0.77976]
[1748642840292,0.00584955,2564.8,2564.3,1.3296]
[1748642840497,0.7797,2564.6,2564.4,0.77974]
[1748642840990,0.78548955,2564.8,2564.4,5.77974]
[1748642841197,0.97461,2564.5,2564.4,7.8978]
[1748642841590,0.47461,2564.5,2564.4,7.8978]
[1748642841791,0.77971,2564.5,2564.4,9.2274]
[1748642842091,0.00584955,2564.8,2564.4,14.2274]
[1748642842293,0.77967,2564.7,2564.6,0.77968]
[1748642843194,0.77968,2564.7,2564.4,9.2274]
[1748642843393,0.78547955,2564.8,2564.4,9.2274]
[1748642843591,0.78547955,2564.8,2564.7,3.2078]
[1748642843996,0.00584955,2564.8,2564.7,3.2078]
[1748642844394,0.00584955,2564.8,2564.7,3.98745]
[1748642844703,0.78546955,2564.8,2564.7,3.2078]
[1748642844894,0.78546955,2564.8,2564.7,5.27325]
[1748642845089,0.00584955,2564.8,2564.7,5.27325]
[1748642846197,0.78546955,2564.8,2564.7,5.27325]
[1748642846997,0.00584955,2564.8,2564.7,5.27325]
[1748642847192,1.94841,2565.7,2564.7,9.4936]
[1748642847395,0.77938,2565.6,2565.5,3.2078]
[1748642847598,0.77947,2565.3,2565.2,3.2078]
[1748642847805,0.77947,2565.3,2565.2,7.8968]
[1748642849005,0.77947,2565.3,2565.2,4.4388]
[1748642849201,0.77947,2565.3,2565.2,4.688]
[1748642849399,0.77953,2565.1,2565.0,0.00584955]
[1748642849701,0.77953,2565.1,2565.0,4.69384955]
[1748642850093,3.98733,2565.1,2565.0,4.69384955]
[1748642850297,0.77953,2565.1,2565.0,4.69384955]
[1748642850795,0.77953,2565.1,2565.0,5.47340955]
[1748642850991,0.77953,2565.1,2565.0,0.00584955]
[1748642851199,0.77953,2565.1,2565.0,4.69384955]
[1748642851906,0.77953,2565.1,2565.0,5.47340955]
[1748642852203,0.77953,2565.1,2565.0,6.80268955]
[1748642852500,0.77953,2565.1,2565.0,6.80270955]
[1748642852803,0.77953,2565.1,2565.0,4.69384955]
[1748642855610,0.77953,2565.1,2565.0,5.47340955]
[1748642856095,1.424,2565.4,2565.0,4.69384955]
[1748642856297,0.97436,2565.4,2565.3,0.77947]
[1748642856501,0.7795,2565.2,2565.1,5.24649]
[1748642856705,2.14352,2565.4,2565.2,0.77947]
[1748642856706,0.77948,2565.3,2565.2,0.77947]
[1748642857805,0.1949,2565.4,2565.3,0.77947]
[1748642859503,0.97434,2565.4,2565.3,0.77947]
[1748642859701,0.1949,2565.4,2565.3,0.77947]
[1748642861102,0.1949,2565.4,2565.3,2.01507]
[1748642861803,0.78527955,2565.5,2565.3,2.01507]
[1748642861804,0.00584955,2565.5,2565.3,2.01507]
[1748642862108,0.77941,2565.6,2565.5,0.77939]
[1748642862405,0.77941,2565.6,2565.5,6.80269]
[1748642863113,0.77941,2565.6,2565.5,6.0233]
[1748642863407,0.77941,2565.6,2565.5,6.80271]
[1748642863604,0.00584955,2565.8,2565.5,7.97183]
[1748642863800,0.00584955,2565.8,2565.7,0.77935]
[1748642864803,0.00584955,2565.8,2565.7,3.98715]
[1748642865004,0.1948,2565.9,2565.8,0.77932]
[1748642865200,0.1948,2565.9,2565.8,2.04532]
[1748642865405,0.77932,2565.8,2565.7,3.2078]
[1748642865612,0.77932,2565.8,2565.4,0.77943]
[1748642865613,0.77944,2565.5,2565.4,0.77943]
[1748642865907,0.77944,2565.5,2565.4,5.39343]
[1748642866105,0.7794,2565.6,2565.5,0.77938]
[1748642866508,0.7794,2565.6,2565.5,2.04538]
[1748642868114,0.77941,2565.6,2565.5,3.98719]
[1748642870811,0.00385948,2565.7,2565.5,3.98719]
[1748642871015,0.78321948,2565.7,2565.6,0.77938]
[1748642871818,1.3071,2565.8,2565.6,0.77938]
[1748642872319,0.77936,2565.7,2565.6,0.77938]
[1748642873317,0.77938,2565.6,2565.5,5.30309]
[1748642873710,0.1948,2565.9,2565.5,6.47223]
[1748642873911,0.77935,2565.8,2565.7,0.77932]
[1748642874614,2.11555,2565.8,2565.7,0.77932]
[1748642875118,0.77938,2565.7,2565.6,0.77935]
[1748642876517,0.77938,2565.7,2565.6,5.39335]
[1748642878219,1.3362,2565.8,2565.7,0.77935]
[1748642878417,0.7793,2565.9,2565.8,0.77929]
[1748642879916,2.7336,2566.0,2565.7,1.2397]
[1748642879917,2.7336,2566.0,2565.9,0.77929]
[1748642880123,0.1948,2566.0,2565.9,0.77929]
[1748642880822,0.1948,2566.0,2565.9,2.05239]
[1748642882115,0.1948,2566.0,2565.9,6.66539]
[1748642882311,0.1948,2566.0,2565.9,2.05239]
[1748642882521,0.1948,2566.0,2565.9,6.66539]
[1748642883317,0.1948,2566.0,2565.7,0.77932]
[1748642883318,0.77936,2565.8,2565.7,0.77932]
[1748642883519,0.77932,2565.9,2565.8,0.77929]
[1748642883722,0.77932,2565.9,2565.8,3.98709]
[1748642884019,0.77932,2565.8,2565.7,0.77934]
[1748642884222,0.77938,2565.7,2565.6,0.77937]
[1748642884519,1.2589,2565.8,2565.6,5.39237]
[1748642884722,0.77938,2565.7,2565.6,0.77937]
[1748642884923,0.77938,2565.7,2565.6,5.39237]
[1748642885223,0.6348,2565.9,2565.8,0.77932]
[1748642885417,0.1948,2566.0,2565.9,0.77929]
[1748642886424,0.97406,2566.0,2565.9,0.77929]
[1748642886627,0.1948,2566.0,2565.9,0.77929]
[1748642887321,0.1948,2566.0,2565.9,5.39229]
[1748642888319,0.1948,2566.0,2565.5,4.5629]
[1748642888520,0.77938,2565.6,2565.5,3.2078]
[1748642888716,0.77938,2565.6,2565.5,7.8208]
[1748642888922,0.77933,2565.8,2565.7,0.77932]
[1748642889118,2.08181,2565.9,2565.8,0.77932]
[1748642889426,0.77935,2565.8,2565.7,0.77933]
[1748642889616,2.00355,2565.8,2565.7,0.77933]
[1748642890020,0.77938,2565.7,2565.6,0.77935]
[1748642890223,0.77938,2565.6,2565.5,8.60018]
[1748642890525,2.66336,2565.7,2565.6,0.77938]
[1748642891427,0.77938,2565.6,2565.5,0.77939]
[1748642891626,2.68988,2565.6,2565.5,5.39239]
[1748642891827,1.9105,2565.6,2565.2,3.2078]
[1748642892021,0.77953,2565.1,2565.0,40.07136955]
[1748642892222,0.77942,2565.5,2565.0,45.85374955]
[1748642892428,0.77942,2565.5,2565.4,0.77941]
[1748642892429,2.09542,2565.5,2565.4,0.77941]
[1748642893524,0.77953,2565.1,2565.0,39.29184955]
[1748642893730,0.77953,2565.1,2565.0,43.90484955]
[1748642893926,1.316,2565.3,2565.0,43.90484955]
[1748642894121,3.2078,2566.2,2565.9,0.77928]
[1748642894424,3.2078,2566.2,2566.1,0.77923]
[1748642894625,0.7792,2566.2,2566.1,4.613]
[1748642894824,3.987,2566.2,2566.1,4.613]
[1748642895028,0.6838,2566.4,2566.1,4.613]
[1748642895229,0.6838,2566.4,2565.7,3.2078]
[1748642895430,1.264,2566.3,2565.7,3.2078]
[1748642895631,0.77929,2565.9,2565.8,5.48332]
[1748642895831,0.1948,2565.9,2565.8,4.704]
[1748642896028,0.1948,2565.9,2565.8,5.48332]
[1748642896236,1.4588,2565.9,2565.8,5.48332]
[1748642896935,1.4588,2565.9,2565.8,0.77932]
[1748642897230,1.4588,2565.9,2565.8,5.48332]
[1748642897844,0.1948,2565.9,2565.8,6.82792]
[1748642898135,0.6838,2566.4,2566.3,0.77917]
[1748642898336,0.6838,2566.4,2566.3,5.48317]
[1748642898935,1.264,2566.5,2566.4,0.77914]
[1748642899325,0.6441,2566.7,2566.6,0.77908]
[1748642899529,2.70154,2566.7,2566.6,0.77908]
[1748642899736,1.9225,2566.7,2566.4,0.00584955]
[1748642899937,0.7791,2566.6,2566.5,0.77909]
[1748642900236,2.0575,2566.6,2566.5,0.77909]
[1748642900638,2.0575,2566.6,2566.5,5.48309]
[1748642901438,1.2784,2566.6,2566.5,5.48309]
[1748642901937,0.1945,2566.8,2566.5,4.704]
[1748642902135,0.1945,2566.8,2566.7,3.98684]
[1748642902439,0.77896,2567.0,2566.9,0.77898]
[1748642902637,0.77897,2567.0,2566.9,5.48296]
[1748642902836,1.3441,2567.3,2566.9,4.704]
[1748642903138,0.77893,2567.1,2567.0,0.77895]
[1748642904033,1.94739,2567.0,2566.8,4.704]
[1748642904241,0.77911,2566.5,2566.4,0.00584955]
[1748642904740,0.77911,2566.5,2566.4,4.70984955]
[1748642905128,5.77911,2566.5,2566.4,0.00584955]
[1748642906348,0.77911,2566.5,2566.4,0.00584955]
[1748642907449,1.9848,2566.7,2566.4,0.00584955]
[1748642907633,1.9848,2566.7,2566.6,0.77908]
[1748642907832,0.6315,2566.9,2566.8,0.77901]
[1748642908034,0.6315,2566.9,2566.8,5.48301]
[1748642908335,1.41048,2566.9,2566.8,5.48301]
[1748642908937,0.6315,2566.9,2566.8,5.48301]
[1748642909436,1.3279,2567.1,2566.8,4.704]
[1748642909639,2.62928,2567.3,2566.8,4.704]
[1748642909640,1.46098,2567.3,2567.2,0.77889]
[1748642909938,0.77886,2567.3,2567.2,0.77889]
[1748642910528,0.77886,2567.3,2567.2,0.770621]
[1748642913152,0.77884,2567.4,2567.3,0.77886]
[1748642913451,0.77884,2567.4,2567.3,5.48186]
[1748642915945,3.2078,2567.8,2567.7,0.77874]
[1748642916154,1.94686,2567.7,2567.2,0.77886]
[1748642916354,0.77888,2567.4,2567.3,5.48186]
[1748642916551,0.77888,2567.4,2567.3,4.703]
[1748642916851,0.77888,2567.4,2567.3,5.48186]
[1748642918247,2.1272,2567.5,2567.4,0.77883]
[1748642919350,3.2078,2567.8,2567.4,1.94706]
[1748642919547,4.4715,2568.3,2567.6,5.15474]
[1748642919756,0.77867,2568.0,2567.9,0.77866]
[1748642920054,0.77867,2568.0,2567.9,5.48066]
[1748642920452,0.77862,2568.2,2568.1,0.7786]
[1748642920651,5.25009,2568.3,2568.2,0.77859]
[1748642921147,1.2637,2568.3,2568.2,0.77859]
[1748642921355,1.2608,2568.5,2568.0,1.229]
[1748642921553,0.77858,2568.3,2568.2,0.77856]
[1748642922363,1.2637,2568.4,2568.3,0.77856]
[1748642922552,1.2608,2568.5,2568.0,1.229]
[1748642922553,0.77858,2568.3,2568.0,1.229]
[1748642922757,0.77862,2568.2,2568.1,0.77859]
[1748642925763,0.77862,2568.1,2568.0,2.00762]
[1748642926058,0.77871,2567.8,2567.7,0.00584955]
[1748642926259,0.77871,2567.8,2567.7,4.56684955]
[1748642926457,0.77871,2567.8,2567.7,0.00584955]
[1748642926662,0.77871,2567.8,2567.7,4.56684955]
[1748642926957,0.77871,2567.8,2567.7,0.00584955]
[1748642927152,2.12811,2567.8,2567.7,4.56684955]
[1748642927355,2.76501,2567.8,2567.7,4.56684955]
[1748642929265,2.83494857,2567.8,2567.7,4.56684955]
[1748642929461,2.83494857,2567.8,2567.7,0.00584955]
[1748642929662,0.06993857,2567.8,2567.7,5.34558955]
[1748642931467,0.84864857,2567.8,2567.7,5.34558955]
[1748642933169,0.06993857,2567.8,2567.7,5.34558955]
[1748642933365,0.77869,2567.9,2567.8,0.77871]
[1748642933668,2.10537,2568.0,2567.9,0.77868]
[1748642937864,1.3267,2568.0,2567.9,0.77868]
[1748642938872,2.10535,2568.0,2567.9,0.77868]
[1748642940077,0.77871,2567.8,2567.7,5.34557955]
[1748642940268,0.77871,2567.8,2567.7,4.56684955]
[1748642940469,0.84864857,2567.8,2567.7,0.00584955]
[1748642940868,2.71694857,2567.8,2567.7,4.56684955]
[1748642941971,2.71694857,2567.8,2567.7,0.00584955]
[1748642943377,0.77886,2567.3,2567.2,3.2078]
[1748642943577,0.77886,2567.3,2567.2,8.54768]
[1748642943874,2.10145,2567.4,2567.3,0.77886]
[1748642946476,0.77886,2567.3,2567.2,8.54767]
[1748642946677,2.05676,2567.3,2567.2,4.561]
[1748642947181,0.77889,2567.2,2567.1,0.00584955]
[1748642947470,3.36549,2567.2,2567.1,0.00584955]
[1748642947970,8.36549,2567.2,2567.1,0.00584955]
[1748642948374,3.36549,2567.2,2567.1,0.00584955]
[1748642950272,3.36549,2567.2,2567.1,0.78476955]
[1748642951977,1.40539,2567.2,2567.1,0.78476955]
[1748642952484,1.40539,2567.2,2567.1,0.00584955]
[1748642952976,1.40539,2567.2,2567.1,0.78476955]
[1748642953280,0.1946,2567.2,2567.1,0.78476955]
[1748642953583,0.1946,2567.2,2567.1,3.99256955]
[1748642957487,0.97349,2567.2,2567.1,3.99256955]
[1748642957984,0.1946,2567.2,2567.1,3.99256955]
[1748642959286,0.97349,2567.2,2567.1,3.99256955]
[1748642959786,0.1946,2567.2,2567.1,3.99256955]
[1748642961787,0.1946,2567.2,2567.1,0.78476955]
[1748642962185,0.00584955,2567.6,2567.5,0.7788]
[1748642962381,0.00584955,2567.6,2567.5,5.1988]
[1748642962883,0.00584955,2567.6,2567.5,6.429]
[1748642963989,0.00584955,2567.6,2567.5,9.6368]
[1748642966689,0.00584955,2567.6,2567.5,8.4066]
[1748642966882,0.78461955,2567.6,2567.5,5.1988]
[1748642967979,0.00584955,2567.6,2567.5,5.1988]
[1748642969190,0.00584955,2567.6,2567.5,8.4066]
[1748642970884,0.00584955,2567.6,2567.5,3.9866]
[1748642971188,3.99241955,2567.6,2567.5,4.42]
[1748642971584,3.99241955,2567.6,2567.5,5.1988]
[1748642972093,3.99241955,2567.6,2567.5,4.42]
[1748642972685,3.99241955,2567.6,2567.5,5.1988]
[1748642972887,3.99241955,2567.6,2567.5,4.42]
[1748642973287,3.99241955,2567.6,2567.5,5.1988]
[1748642973485,3.99241955,2567.6,2567.5,4.42]
[1748642975988,0.77886,2567.3,2567.2,4.42]
[1748642976187,0.77889,2567.2,2567.1,0.78475955]
[1748642976491,2.18209,2567.2,2567.1,0.78475955]
[1748642976691,2.18209,2567.2,2567.1,5.20475955]
[1748642977292,2.18209,2567.2,2567.1,0.78475955]
[1748642977495,2.18209,2567.2,2567.1,5.20475955]
[1748642979594,0.708,2567.2,2567.1,5.20475955]
[1748642979993,1.48689,2567.2,2567.1,5.20475955]
[1748642981295,1.48689,2567.2,2567.1,0.78475955]
[1748642982601,1.48689,2567.2,2567.1,0.00584955]
[1748642982899,1.48689,2567.2,2567.1,0.78476955]
[1748642983089,1.94709,2567.4,2567.1,0.78476955]
[1748642983090,0.00584955,2567.6,2567.1,0.00584955]
[1748642983295,0.00584955,2567.6,2567.5,0.7788]
[1748642983496,0.00584955,2567.6,2567.5,5.1988]
[1748642984895,0.00584955,2567.6,2567.4,0.7788]
[1748642985099,0.7788,2567.5,2567.4,0.7788]
[1748642985293,0.00584955,2567.6,2567.5,0.7788]
[1748642987101,0.00584955,2567.6,2567.5,2.0345]
[1748642987995,0.00584955,2567.6,2567.5,2.7026]
[1748642990599,0.78461955,2567.6,2567.5,2.7026]
[1748642990801,0.00584955,2567.6,2567.5,2.7026]
[1748642991097,0.00584955,2567.6,2567.3,3.2078]
[1748642991301,0.00584955,2567.6,2567.2,4.34]
[1748642991504,0.77886,2567.3,2567.2,4.34]